[Event "2nd Namma Bengaluru Open-B 2025"]
[Site "Bengaluru"]
[Date "2025.04.12"]
[Round "8.1"]
[White "Swapnil Priyadarshi"]
[Black "Aditya Dileepraj"]
[Result "0-1"]
[Annotator "NA"]
[ECO "B43"]
[WhiteElo "1814"]
[BlackElo "1746"]
[PlyCount "66"]
[EventDate "2025.04.10"]
[EventType "swiss"]
[EventCountry "IND"]
[SourceTitle "playchess.com"]
[Source "ChessBase"]
[SourceQuality "1"]
[TimeControl "3600+30"]

1. e4 {[%emt 0:01:58]} c5 {[%emt 0:00:28]} 2. Nf3 {[%emt 0:00:05]} e6 {[%emt 0:00:04]} 3. d4 {[%emt 0:00:03]} cxd4 {[%emt 0:00:07]} 4. Nxd4 {[%emt 0:00:03]} a6 {[%emt 0:00:14]} 5. Nc3 {[%emt 0:00:16]} Qc7 {[%emt 0:00:06]} 6. Be3 {[%emt 0:00:36]} Nf6 {[%emt 0:00:09]} 7. a3 {[%emt 0:03:51]} b5 {[%emt 0:01:53]} 8. Bd3 {[%emt 0:02:51]} Bb7 {[%emt 0:01:40]} 9. O-O {[%emt 0:00:22]} d6 {[%emt 0:02:19]} 10. Kh1 {[%emt 0:00:46]} Nbd7 {[%emt 0:00:28]} 11. f4 {[%emt 0:01:17]} Be7 {[%emt 0:00:09]} 12. Nb3 {[%emt 0:01:19]} Rc8 {[%emt 0:01:26]} 13. Qe1 {[%emt 0:02:00]} O-O {[%emt 0:03:52]} 14. Bd4 {[%emt 0:07:50]} e5 {[%emt 0:06:14]} 15. Be3 {[%emt 0:00:19]} Nb6 {[%emt 0:01:04]} 16. Qg3 {[%emt 0:01:35]} Nfd7 {[%emt 0:09:03]} 17. fxe5 {[%emt 0:03:02]} Nxe5 {[%emt 0:00:12]} 18. Nd4 {[%emt 0:00:13]} Rfe8 {[%emt 0:02:03]} 19. Nf5 {[%emt 0:04:25]} Ng6 {[%emt 0:00:34]} 20. h4 {[%emt 0:03:06]} h5 {[%emt 0:01:52]} 21. Be2 {[%emt 0:21:43]} Bf6 {[%emt 0:07:31]} 22. Bxh5 {[%emt 0:03:07]} Nc4 {[%emt 0:03:42]} 23. Bxg6 {[%emt 0:01:26]} Nxe3 {[%emt 0:00:56]} 24. Nxe3 {[%emt 0:01:17]} fxg6 {[%emt 0:00:16]} 25. Qxg6 {[%emt 0:02:36]} Bxc3 {[%emt 0:00:18]} 26. Ng4 {[%emt 0:03:27]} Bxe4 {[%emt 0:05:05]} 27. Nh6+ {[%emt 0:01:41]} Kh8 {[%emt 0:00:06]} 28. Nf7+ {[%emt 0:00:03]} Kg8 {[%emt 0:00:07]} 29. Nh6+ {[%emt 0:00:06]} Kh8 {[%emt 0:00:06]} 30. Nf7+ {[%emt 0:00:01]} Kg8 {[%emt 0:00:07]} 31. Qh5 {[%emt 0:02:23]} g6 {[%emt 0:00:39]} 32. Qg5 {[%emt 0:02:43]} Bg7 {[%emt 0:01:32]} 33. h5 {[%emt 0:00:00]} Qc5 {[%emt 0:01:00]} 0-1

[Event "2nd Namma Bengaluru Open-B 2025"]
[Site "Bengaluru"]
[Date "2025.04.12"]
[Round "8.2"]
[White "Nijesh R"]
[Black "Elesh Tripathi"]
[Result "1-0"]
[Annotator "NA"]
[ECO "C10"]
[WhiteElo "1813"]
[BlackElo "1758"]
[PlyCount "103"]
[EventDate "2025.04.10"]
[EventType "swiss"]
[EventCountry "IND"]
[SourceTitle "playchess.com"]
[Source "ChessBase"]
[SourceQuality "1"]
[TimeControl "3600+30"]

1. e4 {[%emt 0:00:25]} e6 {[%emt 0:00:12]} 2. d4 {[%emt 0:00:26]} d5 {[%emt 0:00:09]} 3. Nc3 {[%emt 0:00:05]} dxe4 {[%emt 0:00:09]} 4. Nxe4 {[%emt 0:00:06]} Be7 {[%emt 0:00:08]} 5. Nf3 {[%emt 0:00:15]} Nf6 {[%emt 0:00:07]} 6. Nxf6+ {[%emt 0:01:01]} Bxf6 {[%emt 1:02:45]} 7. Bd3 {[%emt 1:01:42]} c5 {[%emt 0:00:30]} 8. dxc5 {[%emt 0:00:30]} Qa5+ {[%emt 0:00:30]} 9. Nd2 {[%emt 0:00:30]} Nd7 {[%emt 0:00:00]} 10. c6 {[%emt 0:00:00]} bxc6 {[%emt 0:00:00]} 11. O-O {[%emt 0:00:00]} Ne5 {[%emt 0:00:00]} 12. Ne4 {[%emt 0:00:00]} Be7 {[%emt 0:00:00]} 13. Bd2 {[%emt 0:00:00]} Qb6 {[%emt 0:00:00]} 14. Bc3 {[%emt 0:00:00]} Nxd3 {[%emt 0:00:00]} 15. cxd3 {[%emt 0:00:00]} O-O {[%emt 0:00:00]} 16. Rc1 {[%emt 0:00:00]} c5 {[%emt 0:00:00]} 17. Re1 {[%emt 0:00:00]} Bb7 {[%emt 0:00:00]} 18. Qg4 {[%emt 0:00:00]} f6 {[%emt 0:00:00]} 19. Ng3 {[%emt 0:00:00]} Bc8 {[%emt 0:00:00]} 20. Nf5 {[%emt 0:00:00]} exf5 {[%emt 0:00:00]} 21. Qc4+ {[%emt 0:00:00]} Kh8 {[%emt 0:00:00]} 22. Rxe7 {[%emt 0:00:00]} Qd6 {[%emt 0:00:00]} 23. Rce1 {[%emt 0:00:00]} Ba6 {[%emt 0:00:00]} 24. Qh4 {[%emt 0:00:00]} Bxd3 {[%emt 0:00:00]} 25. R1e6 {[%emt 0:00:00]} Qd8 {[%emt 0:00:00]} 26. Qg3 {[%emt 0:02:04]} Rg8 {[%emt 0:00:00]} 27. Qd6 {[%emt 0:03:00]} Qxd6 {[%emt 0:00:00]} 28. Rxd6 {[%emt 0:00:02]} Rgd8 {[%emt 0:00:00]} 29. Rxa7 {[%emt 0:01:24]} Bc4 {[%emt 0:00:00]} 30. Rxa8 {[%emt 0:00:55]} Rxa8 {[%emt 0:00:00]} 31. a3 {[%emt 0:00:07]} Bb3 {[%emt 0:00:00]} 32. Rc6 {[%emt 0:01:10]} Rd8 {[%emt 0:00:00]} 33. h3 {[%emt 0:00:43]} c4 {[%emt 0:00:00]} 34. Rc5 {[%emt 0:00:36]} Kg8 {[%emt 0:00:00]} 35. Rxf5 {[%emt 0:00:09]} Kf7 {[%emt 0:00:00]} 36. Ra5 {[%emt 0:00:09]} Kg6 {[%emt 0:00:00]} 37. Ra7 {[%emt 0:01:03]} Rd1+ {[%emt 0:00:00]} 38. Kh2 {[%emt 0:00:02]} Ra1 {[%emt 0:00:00]} 39. g4 {[%emt 0:00:19]} Bc2 {[%emt 0:00:00]} 40. Bb4 {[%emt 0:00:33]} Be4 {[%emt 0:00:41]} 41. Kg3 {[%emt 0:01:11]} f5 {[%emt 0:00:47]} 42. Bc3 {[%emt 0:01:06]} fxg4 {[%emt 0:01:38]} 43. hxg4 {[%emt 0:00:12]} Kg5 {[%emt 0:00:32]} 44. Rxg7+ {[%emt 0:00:49]} Bg6 {[%emt 0:00:06]} 45. f4+ {[%emt 0:00:13]} Kh6 {[%emt 0:00:05]} 46. Re7 {[%emt 0:01:02]} Bf7 {[%emt 0:00:40]} 47. Rxf7 {[%emt 0:00:07]} Rg1+ {[%emt 0:00:26]} 48. Kh3 {[%emt 0:00:08]} Rf1 {[%emt 0:00:21]} 49. Kg2 {[%emt 0:00:08]} Rc1 {[%emt 0:00:09]} 50. Bh8 {[%emt 0:00:45]} Rc2+ {[%emt 0:00:52]} 51. Kg3 {[%emt 0:00:07]} Rc3+ {[%emt 0:00:09]} 52. bxc3 {[%emt 0:00:01]} 1-0

[Event "2nd Namma Bengaluru Open-B 2025"]
[Site "Bengaluru"]
[Date "2025.04.12"]
[Round "8.3"]
[White "Nayak, Biswajit"]
[Black "Singh Arjun M"]
[Result "1/2-1/2"]
[Annotator "NA"]
[ECO "D14"]
[WhiteElo "1979"]
[BlackElo "1864"]
[PlyCount "80"]
[EventDate "2025.04.10"]
[EventType "swiss"]
[EventCountry "IND"]
[SourceTitle "playchess.com"]
[Source "ChessBase"]
[SourceQuality "1"]
[TimeControl "3600+30"]

1. d4 {[%emt 0:00:07]} Nf6 {[%emt 0:01:22]} 2. Nf3 {[%emt 0:00:13]} d5 {[%emt 0:00:11]} 3. c4 {[%emt 0:00:42]} c6 {[%emt 0:00:12]} 4. cxd5 {[%emt 0:01:27]} cxd5 {[%emt 0:00:13]} 5. Nc3 {[%emt 0:00:05]} Nc6 {[%emt 0:00:21]} 6. Bf4 {[%emt 0:00:19]} Bf5 {[%emt 0:00:40]} 7. e3 {[%emt 0:02:44]} e6 {[%emt 0:02:06]} 8. Qb3 {[%emt 0:02:01]} Bb4 {[%emt 0:08:11]} 9. Bb5 {[%emt 0:02:19]} O-O {[%emt 0:01:43]} 10. O-O {[%emt 0:01:07]} Bxc3 {[%emt 0:01:38]} 11. Qxc3 {[%emt 0:01:59]} Rc8 {[%emt 0:00:49]} 12. Rfc1 {[%emt 0:07:46]} a6 {[%emt 0:00:52]} 13. Bxc6 {[%emt 0:00:54]} Rxc6 {[%emt 0:02:33]} 14. Qa3 {[%emt 0:00:42]} Qc8 {[%emt 0:01:19]} 15. b3 {[%emt 0:04:52]} Ne4 {[%emt 0:03:15]} 16. Qb2 {[%emt 0:03:37]} Nc3 {[%emt 0:03:12]} 17. Kh1 {[%emt 0:03:16]} f6 {[%emt 0:00:30]} 18. Bg3 {[%emt 0:10:59]} h6 {[%emt 0:02:13]} 19. Ng1 {[%emt 0:01:53]} b5 {[%emt 0:01:32]} 20. Bd6 {[%emt 0:03:03]} Rxd6 {[%emt 0:12:14]} 21. Rxc3 {[%emt 0:00:22]} Qb8 {[%emt 0:00:11]} 22. Rac1 {[%emt 0:01:14]} e5 {[%emt 0:04:16]} 23. Rc5 {[%emt 0:02:06]} Rdd8 {[%emt 0:02:07]} 24. Qd2 {[%emt 0:01:54]} b4 {[%emt 0:03:51]} 25. dxe5 {[%emt 0:03:46]} fxe5 {[%emt 0:00:31]} 26. Rxd5 {[%emt 0:00:58]} Be4 {[%emt 0:00:09]} 27. Rxd8 {[%emt 0:00:32]} Rxd8 {[%emt 0:00:06]} 28. Qe2 {[%emt 0:00:08]} Qb7 {[%emt 0:00:24]} 29. f3 {[%emt 0:00:07]} Bd3 {[%emt 0:00:29]} 30. Qe1 {[%emt 0:00:35]} e4 {[%emt 0:00:12]} 31. f4 {[%emt 0:01:33]} a5 {[%emt 0:00:31]} 32. Rc5 {[%emt 0:02:02]} Rd5 {[%emt 0:00:12]} 33. Qc1 {[%emt 0:00:22]} Rxc5 {[%emt 0:00:05]} 34. Qxc5 {[%emt 0:00:04]} Qb5 {[%emt 0:00:06]} 35. Qc1 {[%emt 0:02:02]} a4 {[%emt 0:01:46]} 36. h3 {[%emt 0:05:25]} axb3 {[%emt 0:00:52]} 37. axb3 {[%emt 0:00:06]} Qd5 {[%emt 0:00:04]} 38. Qc8+ {[%emt 0:01:25]} Kh7 {[%emt 0:00:07]} 39. Qf8 {[%emt 0:00:28]} Qxb3 {[%emt 0:00:06]} 40. Qf5+ {[%emt 0:00:05]} Kh8 {[%emt 0:00:04]} 1/2-1/2

[Event "2nd Namma Bengaluru Open-B 2025"]
[Site "Bengaluru"]
[Date "2025.04.12"]
[Round "8.4"]
[White "Afreed T Khan"]
[Black "Hrishikesh Ganapathy Subramani"]
[Result "1-0"]
[Annotator "NA"]
[ECO "D55"]
[WhiteElo "1921"]
[BlackElo "1792"]
[PlyCount "83"]
[EventDate "2025.04.10"]
[EventType "swiss"]
[EventCountry "IND"]
[SourceTitle "playchess.com"]
[Source "ChessBase"]
[SourceQuality "1"]
[TimeControl "3600+30"]

1. d4 {[%emt 0:02:41]} Nf6 {[%emt 0:00:26]} 2. c4 {[%emt 0:00:07]} b6 {[%emt 0:00:12]} 3. Nc3 {[%emt 0:00:08]} Bb7 {[%emt 0:00:04]} 4. Qc2 {[%emt 0:01:10]} d5 {[%emt 0:00:11]} 5. Nf3 {[%emt 0:01:34]} e6 {[%emt 0:00:47]} 6. cxd5 {[%emt 0:07:46]} exd5 {[%emt 0:00:31]} 7. Bg5 {[%emt 0:02:22]} Be7 {[%emt 0:01:26]} 8. e3 {[%emt 0:00:14]} h6 {[%emt 0:00:18]} 9. Bh4 {[%emt 0:00:25]} O-O {[%emt 0:00:23]} 10. Bd3 {[%emt 0:00:06]} Nbd7 {[%emt 0:03:33]} 11. O-O {[%emt 0:00:27]} c5 {[%emt 0:00:49]} 12. Rad1 {[%emt 0:03:58]} a6 {[%emt 0:09:29]} 13. Bf5 {[%emt 0:04:20]} c4 {[%emt 0:04:51]} 14. Ne5 {[%emt 0:05:32]} b5 {[%emt 0:07:05]} 15. a3 {[%emt 0:00:13]} Re8 {[%emt 0:05:36]} 16. f4 {[%emt 0:03:27]} Qc7 {[%emt 0:01:09]} 17. Rf3 {[%emt 0:04:08]} Nf8 {[%emt 0:03:32]} 18. Qe2 {[%emt 0:05:44]} Rad8 {[%emt 0:03:34]} 19. Rdf1 {[%emt 0:05:40]} Bc8 {[%emt 0:04:12]} 20. Bxc8 {[%emt 0:05:22]} Qxc8 {[%emt 0:00:41]} 21. Bxf6 {[%emt 0:00:06]} Bxf6 {[%emt 0:00:20]} 22. Rh3 {[%emt 0:00:07]} Bxe5 {[%emt 0:03:28]} 23. fxe5 {[%emt 0:00:14]} Qd7 {[%emt 0:01:52]} 24. Qh5 {[%emt 0:03:02]} Qe6 {[%emt 0:03:03]} 25. Rhf3 {[%emt 0:00:29]} Qg6 {[%emt 0:00:54]} 26. Qxg6 {[%emt 0:02:04]} fxg6 {[%emt 0:00:12]} 27. Rf7 {[%emt 0:00:07]} Nd7 {[%emt 0:04:58]} 28. Nxd5 {[%emt 0:00:47]} Nf6 {[%emt 0:01:45]} 29. R7xf6 {[%emt 0:00:39]} gxf6 {[%emt 0:00:56]} 30. Nxf6+ {[%emt 0:00:03]} Kg7 {[%emt 0:00:20]} 31. Nxe8+ {[%emt 0:00:03]} Rxe8 {[%emt 0:00:02]} 32. Rf6 {[%emt 0:00:25]} Ra8 {[%emt 0:00:41]} 33. Kf2 {[%emt 0:00:42]} a5 {[%emt 0:00:58]} 34. Rb6 {[%emt 0:00:07]} b4 {[%emt 0:00:10]} 35. axb4 {[%emt 0:00:05]} c3 {[%emt 0:00:40]} 36. bxa5 {[%emt 0:00:21]} cxb2 {[%emt 0:00:21]} 37. Rxb2 {[%emt 0:00:08]} Rxa5 {[%emt 0:00:06]} 38. Rb7+ {[%emt 0:00:05]} Kf8 {[%emt 0:00:14]} 39. Kf3 {[%emt 0:00:05]} Ra1 {[%emt 0:00:16]} 40. e6 {[%emt 0:00:25]} g5 {[%emt 0:00:10]} 41. d5 {[%emt 0:00:10]} g4+ {[%emt 0:00:03]} 42. Kxg4 {[%emt 0:00:06]} 1-0

[Event "2nd Namma Bengaluru Open-B 2025"]
[Site "Bengaluru"]
[Date "2025.04.12"]
[Round "8.5"]
[White "Rohith P"]
[Black "Tamang, Sudip"]
[Result "1-0"]
[Annotator "NA"]
[ECO "B36"]
[WhiteElo "1808"]
[BlackElo "1875"]
[PlyCount "77"]
[EventDate "2025.04.10"]
[EventType "swiss"]
[EventCountry "IND"]
[SourceTitle "playchess.com"]
[Source "ChessBase"]
[SourceQuality "1"]
[TimeControl "3600+30"]

1. e4 {[%emt 0:00:02]} c5 {[%emt 0:01:07]} 2. Nf3 {[%emt 0:00:05]} g6 {[%emt 0:00:19]} 3. d4 {[%emt 0:01:45]} cxd4 {[%emt 0:01:41]} 4. Nxd4 {[%emt 0:00:02]} Nc6 {[%emt 0:00:13]} 5. c4 {[%emt 0:00:10]} Nf6 {[%emt 0:00:12]} 6. Nc3 {[%emt 0:00:08]} d6 {[%emt 0:00:05]} 7. Be2 {[%emt 0:00:13]} Nxd4 {[%emt 0:00:07]} 8. Qxd4 {[%emt 0:00:05]} Bg7 {[%emt 0:00:04]} 9. O-O {[%emt 0:00:11]} O-O {[%emt 0:00:04]} 10. Qd3 {[%emt 0:00:54]} Be6 {[%emt 0:02:02]} 11. Be3 {[%emt 0:02:39]} a5 {[%emt 0:03:13]} 12. Rac1 {[%emt 0:02:06]} a4 {[%emt 0:02:20]} 13. Rfd1 {[%emt 0:00:25]} Nd7 {[%emt 0:00:39]} 14. Qd2 {[%emt 0:01:24]} Qa5 {[%emt 0:00:50]} 15. Bd4 {[%emt 0:02:21]} Rfc8 {[%emt 0:02:00]} 16. Bxg7 {[%emt 0:03:18]} Kxg7 {[%emt 0:00:06]} 17. f4 {[%emt 0:01:27]} Qc5+ {[%emt 0:04:34]} 18. Kh1 {[%emt 0:00:26]} f6 {[%emt 0:02:20]} 19. Bd3 {[%emt 0:11:59]} Qb4 {[%emt 0:07:35]} 20. a3 {[%emt 0:03:20]} Qb3 {[%emt 0:04:27]} 21. Nb5 {[%emt 0:01:11]} Bxc4 {[%emt 0:00:33]} 22. Bxc4 {[%emt 0:00:36]} Rxc4 {[%emt 0:00:31]} 23. Nd4 {[%emt 0:00:21]} Rxc1 {[%emt 0:02:44]} 24. Nxb3 {[%emt 0:00:03]} Rxd1+ {[%emt 0:00:12]} 25. Qxd1 {[%emt 0:00:10]} axb3 {[%emt 0:00:05]} 26. Qxb3 {[%emt 0:00:03]} Rc8 {[%emt 0:00:27]} 27. h3 {[%emt 0:00:07]} Rc1+ {[%emt 0:00:15]} 28. Kh2 {[%emt 0:00:09]} Nc5 {[%emt 0:00:10]} 29. Qd5 {[%emt 0:00:25]} Re1 {[%emt 0:01:45]} 30. e5 {[%emt 0:03:02]} fxe5 {[%emt 0:00:14]} 31. b4 {[%emt 0:00:02]} Na4 {[%emt 0:04:45]} 32. fxe5 {[%emt 0:00:45]} Rxe5 {[%emt 0:00:12]} 33. Qxb7 {[%emt 0:00:07]} Nc3 {[%emt 0:00:29]} 34. Qc6 {[%emt 0:00:05]} Ne2 {[%emt 0:02:33]} 35. a4 {[%emt 0:01:12]} h5 {[%emt 0:00:47]} 36. b5 {[%emt 0:00:39]} h4 {[%emt 0:00:20]} 37. b6 {[%emt 0:00:14]} Ng3 {[%emt 0:00:56]} 38. b7 {[%emt 0:00:10]} Kh7 {[%emt 0:00:54]} 39. Qc3 {[%emt 0:00:16]} 1-0

[Event "2nd Namma Bengaluru Open-B 2025"]
[Site "Bengaluru"]
[Date "2025.04.12"]
[Round "8.6"]
[White "Krishnasai Ramesh Vandanapu"]
[Black "Gokul G"]
[Result "1/2-1/2"]
[Annotator "NA"]
[ECO "B67"]
[WhiteElo "1790"]
[BlackElo "1858"]
[PlyCount "62"]
[EventDate "2025.04.10"]
[EventType "swiss"]
[EventCountry "IND"]
[SourceTitle "playchess.com"]
[Source "ChessBase"]
[SourceQuality "1"]
[TimeControl "3600+30"]

1. e4 {[%emt 0:00:03]} c5 {[%emt 0:00:01]} 2. Nf3 {[%emt 0:00:05]} Nc6 {[%emt 0:00:03]} 3. d4 {[%emt 0:00:03]} cxd4 {[%emt 0:00:03]} 4. Nxd4 {[%emt 0:00:03]} Nf6 {[%emt 0:00:04]} 5. Nc3 {[%emt 0:00:09]} d6 {[%emt 0:00:01]} 6. Bg5 {[%emt 0:00:17]} e6 {[%emt 0:00:02]} 7. Qd2 {[%emt 0:00:14]} a6 {[%emt 0:00:09]} 8. O-O-O {[%emt 0:00:09]} Be7 {[%emt 0:00:02]} 9. f3 {[%emt 0:01:05]} Bd7 {[%emt 0:00:24]} 10. h4 {[%emt 0:01:55]} b5 {[%emt 0:04:03]} 11. Nxc6 {[%emt 0:02:31]} Bxc6 {[%emt 0:00:02]} 12. Ne2 {[%emt 0:00:58]} d5 {[%emt 0:04:08]} 13. Nd4 {[%emt 0:04:29]} Bb7 {[%emt 0:00:10]} 14. e5 {[%emt 0:00:14]} Nd7 {[%emt 0:00:09]} 15. Bxe7 {[%emt 0:02:19]} Qxe7 {[%emt 0:00:02]} 16. f4 {[%emt 0:00:14]} O-O {[%emt 0:16:49]} 17. Re1 {[%emt 0:10:16]} f6 {[%emt 0:08:23]} 18. exf6 {[%emt 0:06:06]} Qxf6 {[%emt 0:08:44]} 19. Rxe6 {[%emt 0:18:36]} Qxf4 {[%emt 0:00:14]} 20. Qxf4 {[%emt 0:00:08]} Rxf4 {[%emt 0:00:05]} 21. Re7 {[%emt 0:01:31]} Rf7 {[%emt 0:06:07]} 22. Rxf7 {[%emt 0:00:44]} Kxf7 {[%emt 0:00:01]} 23. Bd3 {[%emt 0:00:24]} Nf6 {[%emt 0:02:02]} 24. Rf1 {[%emt 0:00:10]} Kg8 {[%emt 0:00:19]} 25. Nf5 {[%emt 0:03:05]} Re8 {[%emt 0:09:03]} 26. Nh6+ {[%emt 0:00:07]} Kh8 {[%emt 0:00:06]} 27. Nf7+ {[%emt 0:00:03]} Kg8 {[%emt 0:00:05]} 28. Nh6+ {[%emt 0:00:07]} Kh8 {[%emt 0:00:05]} 29. Nf7+ {[%emt 0:00:03]} Kg8 {[%emt 0:00:04]} 30. Nh6+ {[%emt 0:00:05]} Kh8 {[%emt 0:00:05]} 31. Nf7+ {[%emt 0:00:03]} Kg8 {[%emt 0:14:25]} 1/2-1/2

[Event "2nd Namma Bengaluru Open-B 2025"]
[Site "Bengaluru"]
[Date "2025.04.12"]
[Round "8.7"]
[White "Yeshas H"]
[Black "Samaksh Ashok"]
[Result "1/2-1/2"]
[Annotator "NA"]
[ECO "A84"]
[WhiteElo "1788"]
[BlackElo "1858"]
[PlyCount "117"]
[EventDate "2025.04.10"]
[EventType "swiss"]
[EventCountry "IND"]
[SourceTitle "playchess.com"]
[Source "ChessBase"]
[SourceQuality "1"]
[TimeControl "3600+30"]

1. Nf3 {[%emt 0:00:18]} e6 {[%emt 0:02:42]} 2. d4 {[%emt 0:00:13]} f5 {[%emt 0:01:49]} 3. c4 {[%emt 0:01:28]} Nf6 {[%emt 0:00:18]} 4. Nc3 {[%emt 0:02:08]} Bb4 {[%emt 0:00:17]} 5. Qb3 {[%emt 0:02:50]} Bxc3+ {[%emt 0:00:09]} 6. Qxc3 {[%emt 0:00:12]} b6 {[%emt 0:00:30]} 7. g3 {[%emt 0:01:37]} Bb7 {[%emt 0:00:12]} 8. Bg2 {[%emt 0:00:22]} O-O {[%emt 0:00:21]} 9. O-O {[%emt 0:00:33]} Be4 {[%emt 0:00:58]} 10. b3 {[%emt 0:03:21]} Qe7 {[%emt 0:01:02]} 11. Bb2 {[%emt 0:01:33]} d6 {[%emt 0:00:38]} 12. Rac1 {[%emt 0:03:11]} Nbd7 {[%emt 0:01:17]} 13. Rfd1 {[%emt 0:03:38]} Rac8 {[%emt 0:01:57]} 14. b4 {[%emt 0:05:05]} c5 {[%emt 0:01:37]} 15. dxc5 {[%emt 0:03:55]} dxc5 {[%emt 0:00:22]} 16. b5 {[%emt 0:00:24]} Rcd8 {[%emt 0:02:10]} 17. a4 {[%emt 0:02:49]} Rfe8 {[%emt 0:02:03]} 18. h3 {[%emt 0:05:40]} e5 {[%emt 0:03:10]} 19. Ne1 {[%emt 0:02:19]} Qe6 {[%emt 0:05:06]} 20. Qd2 {[%emt 0:02:10]} Kf7 {[%emt 0:03:08]} 21. Qd6 {[%emt 0:02:40]} Qxd6 {[%emt 0:02:34]} 22. Rxd6 {[%emt 0:00:06]} Re6 {[%emt 0:00:42]} 23. Rxe6 {[%emt 0:01:12]} Kxe6 {[%emt 0:00:22]} 24. Rd1 {[%emt 0:00:10]} Re8 {[%emt 0:01:29]} 25. Bxe4 {[%emt 0:00:49]} Nxe4 {[%emt 0:02:38]} 26. Nc2 {[%emt 0:01:34]} Nd6 {[%emt 0:03:47]} 27. Ne3 {[%emt 0:00:15]} Rc8 {[%emt 0:01:02]} 28. f4 {[%emt 0:02:30]} Rg8 {[%emt 0:02:43]} 29. fxe5 {[%emt 0:04:18]} Nxe5 {[%emt 0:00:16]} 30. Bxe5 {[%emt 0:00:08]} Kxe5 {[%emt 0:00:40]} 31. Kf2 {[%emt 0:00:38]} Rf8 {[%emt 0:01:01]} 32. Kf3 {[%emt 0:01:47]} g5 {[%emt 0:01:18]} 33. Nd5 {[%emt 0:04:58]} Rf7 {[%emt 0:01:59]} 34. Ne3 {[%emt 0:04:02]} Ke6 {[%emt 0:01:40]} 35. g4 {[%emt 0:00:56]} f4 {[%emt 0:06:22]} 36. Nf5 {[%emt 0:00:23]} Nxf5 {[%emt 0:20:11]} 37. gxf5+ {[%emt 0:00:11]} Kxf5 {[%emt 0:00:00]} 38. Rd5+ {[%emt 0:00:29]} Kg6 {[%emt 0:00:00]} 39. Kg4 {[%emt 0:01:32]} h5+ {[%emt 0:00:00]} 40. Kf3 {[%emt 0:00:03]} Re7 {[%emt 0:00:00]} 41. Rd6+ {[%emt 0:00:10]} Kf5 {[%emt 0:00:00]} 42. Rd5+ {[%emt 0:00:14]} Re5 {[%emt 0:00:00]} 43. Rd7 {[%emt 0:00:40]} Re3+ {[%emt 0:00:00]} 44. Kf2 {[%emt 0:00:05]} Re4 {[%emt 0:00:00]} 45. Rxa7 {[%emt 0:00:37]} Rxc4 {[%emt 0:00:00]} 46. a5 {[%emt 0:01:21]} bxa5 {[%emt 0:00:00]} 47. Rxa5 {[%emt 0:00:10]} Rb4 {[%emt 0:00:00]} 48. b6 {[%emt 0:00:08]} Rxb6 {[%emt 0:00:00]} 49. Rxc5+ {[%emt 0:00:04]} Kg6 {[%emt 0:00:00]} 50. Rc4 {[%emt 0:01:13]} h4 {[%emt 0:00:00]} 51. Rc3 {[%emt 0:00:51]} Rb2 {[%emt 0:00:00]} 52. Kf3 {[%emt 0:00:33]} Rb1 {[%emt 0:00:00]} 53. Kg2 {[%emt 0:01:15]} Kh5 {[%emt 0:00:00]} 54. Rd3 {[%emt 0:01:12]} Rb5 {[%emt 0:00:00]} 55. Kf3 {[%emt 0:00:23]} Re5 {[%emt 0:00:00]} 56. Rc3 {[%emt 0:00:49]} Ra5 {[%emt 0:00:00]} 57. Rd3 {[%emt 0:00:11]} Ra1 {[%emt 0:00:00]} 58. Kg2 {[%emt 0:00:10]} Rc1 {[%emt 0:00:00]} 59. Rb3 {[%emt 0:00:22]} 1/2-1/2

[Event "2nd Namma Bengaluru Open-B 2025"]
[Site "Bengaluru"]
[Date "2025.04.12"]
[Round "8.7"]
[White "Yeshas H"]
[Black "Samaksh Ashok"]
[Result "*"]
[Annotator "NA"]
[ECO "A84"]
[WhiteElo "1788"]
[BlackElo "1858"]
[PlyCount "47"]
[EventDate "2025.04.10"]
[EventType "swiss"]
[EventCountry "IND"]
[SourceTitle "playchess.com"]
[Source "ChessBase"]
[SourceQuality "1"]
[TimeControl "3600+30"]

1. Nf3 {[%emt 0:00:18]} e6 {[%emt 0:02:42]} 2. d4 {[%emt 0:00:13]} f5 {[%emt 0:01:49]} 3. c4 {[%emt 0:01:28]} Nf6 {[%emt 0:00:18]} 4. Nc3 {[%emt 0:02:08]} Bb4 {[%emt 0:00:17]} 5. Qb3 {[%emt 0:02:50]} Bxc3+ {[%emt 0:00:09]} 6. Qxc3 {[%emt 0:00:12]} b6 {[%emt 0:00:30]} 7. g3 {[%emt 0:01:37]} Bb7 {[%emt 0:00:12]} 8. Bg2 {[%emt 0:00:22]} O-O {[%emt 0:00:21]} 9. O-O {[%emt 0:00:33]} Be4 {[%emt 0:00:58]} 10. b3 {[%emt 0:03:21]} Qe7 {[%emt 0:01:02]} 11. Bb2 {[%emt 0:01:33]} d6 {[%emt 0:00:38]} 12. Rac1 {[%emt 0:03:11]} Nbd7 {[%emt 0:01:17]} 13. Rfd1 {[%emt 0:03:38]} Rac8 {[%emt 0:01:57]} 14. b4 {[%emt 0:05:05]} c5 {[%emt 0:01:37]} 15. dxc5 {[%emt 0:03:55]} dxc5 {[%emt 0:00:22]} 16. b5 {[%emt 0:00:24]} Rcd8 {[%emt 0:02:10]} 17. a4 {[%emt 0:02:49]} Rfe8 {[%emt 0:02:03]} 18. h3 {[%emt 0:05:40]} e5 {[%emt 0:03:10]} 19. Ne1 {[%emt 0:02:19]} Qe6 {[%emt 0:05:06]} 20. Qd2 {[%emt 0:02:10]} Kf7 {[%emt 0:03:08]} 21. Qd6 {[%emt 0:02:40]} Qxd6 {[%emt 0:02:34]} 22. Rd3 {[%emt 0:25:04]} Qd5 23. Rxd5 {[%emt 0:00:00]} Re6 {[%emt 0:01:12]} 24. Rd6 {[%emt 0:00:00]} *

[Event "2nd Namma Bengaluru Open-B 2025"]
[Site "Bengaluru"]
[Date "2025.04.12"]
[Round "8.8"]
[White "Vivaan Sachdev"]
[Black "Dave, Kantilal"]
[Result "1-0"]
[Annotator "NA"]
[ECO "B07"]
[WhiteElo "1782"]
[BlackElo "1856"]
[PlyCount "51"]
[EventDate "2025.04.10"]
[EventType "swiss"]
[EventCountry "IND"]
[SourceTitle "playchess.com"]
[Source "ChessBase"]
[SourceQuality "1"]
[TimeControl "3600+30"]

1. e4 {[%emt 0:03:02]} d6 {[%emt 0:00:07]} 2. d4 {[%emt 0:00:05]} Nf6 {[%emt 0:00:06]} 3. Nc3 {[%emt 0:00:04]} a6 {[%emt 0:00:09]} 4. h3 {[%emt 0:01:30]} e6 {[%emt 0:00:04]} 5. Bd3 {[%emt 0:01:40]} b5 {[%emt 0:00:07]} 6. Nce2 {[%emt 0:06:50]} Bb7 {[%emt 0:00:48]} 7. Ng3 {[%emt 0:00:41]} Nbd7 {[%emt 0:02:56]} 8. Qe2 {[%emt 0:03:38]} c5 {[%emt 0:01:42]} 9. c3 {[%emt 0:00:05]} Qc7 {[%emt 0:00:32]} 10. f4 {[%emt 0:01:10]} Be7 {[%emt 0:10:10]} 11. Nf3 {[%emt 0:00:37]} e5 {[%emt 0:04:39]} 12. O-O {[%emt 0:03:38]} cxd4 {[%emt 0:08:57]} 13. cxd4 {[%emt 0:00:12]} exd4 {[%emt 0:00:07]} 14. e5 {[%emt 0:06:40]} dxe5 {[%emt 0:00:30]} 15. fxe5 {[%emt 0:00:16]} Nd5 {[%emt 0:01:23]} 16. Nf5 {[%emt 0:00:39]} Ne3 {[%emt 0:05:06]} 17. N3xd4 {[%emt 0:00:51]} Nxf5 {[%emt 0:00:41]} 18. Nxf5 {[%emt 0:01:02]} Nxe5 {[%emt 0:03:28]} 19. Nxg7+ {[%emt 0:02:33]} Kd8 {[%emt 0:00:24]} 20. Be4 {[%emt 0:00:52]} Bxe4 {[%emt 0:13:28]} 21. Qxe4 {[%emt 0:00:21]} Nc6 {[%emt 0:00:08]} 22. Bf4 {[%emt 0:01:35]} Qb6+ {[%emt 0:01:22]} 23. Kh1 {[%emt 0:01:59]} Ra7 {[%emt 0:05:42]} 24. Rfd1+ {[%emt 0:02:56]} Kc8 {[%emt 0:06:10]} 25. Rac1 {[%emt 0:00:11]} Bc5 {[%emt 0:02:13]} 26. b4 {[%emt 0:00:52]} 1-0